[Event "*** Titled Tuesday Blitz"]
[Site "Chess.com"]
[Date "2020.11.10"]
[Round "3"]
[White "Lupul_Cenusiu"]
[Black "Forantes"]
[Result "1-0"]
[WhiteElo "2557"]
[BlackElo "2352"]
[TimeControl "180+1"]
[EndTime "10:32:52 PST"]
[Termination "Lupul_Cenusiu won by resignation"]

1. d4 {[%clk 0:03:00.9]} 1... Nf6 {[%clk 0:02:59.6]} 2. Bg5 {[%clk 0:02:59.5]}
2... d5 {[%clk 0:02:59.2]} 3. Nd2 {[%clk 0:02:58]} 3... g6 {[%clk 0:02:59]} 4.
e3 {[%clk 0:02:57]} 4... Bg7 {[%clk 0:02:59.1]} 5. h4 {[%clk 0:02:56.9]} 5... h5
{[%clk 0:02:57.9]} 6. Ngf3 {[%clk 0:02:53.7]} 6... O-O {[%clk 0:02:58.2]} 7. c4
{[%clk 0:02:52.9]} 7... c5 {[%clk 0:02:56.4]} 8. dxc5 {[%clk 0:02:50.9]} 8...
Nc6 {[%clk 0:02:56.2]} 9. Be2 {[%clk 0:02:45.5]} 9... Bg4 {[%clk 0:02:50]} 10.
O-O {[%clk 0:02:43.1]} 10... Rc8 {[%clk 0:02:41.9]} 11. Rc1 {[%clk 0:02:40.4]}
11... d4 {[%clk 0:01:33.7]} 12. Nb3 {[%clk 0:02:17.1]} 12... e5 {[%clk
0:01:06.4]} 13. e4 {[%clk 0:01:51]} 13... Qc7 {[%clk 0:00:59.7]} 14. Bxf6 {[%clk
0:01:30.8]} 14... Bxf6 {[%clk 0:00:59.6]} 15. g3 {[%clk 0:01:31.3]} 15... Bg7
{[%clk 0:00:52.6]} 16. Ne1 {[%clk 0:01:31.2]} 16... Be6 {[%clk 0:00:50.5]} 17.
Bf3 {[%clk 0:01:27.4]} 17... f5 {[%clk 0:00:31.5]} 18. Nd3 {[%clk 0:01:24]}
18... f4 {[%clk 0:00:27.9]} 19. Kh2 {[%clk 0:01:22.8]} 19... Qe7 {[%clk
0:00:22.4]} 20. Nd2 {[%clk 0:01:14.6]} 20... Rf7 {[%clk 0:00:20.8]} 21. b4
{[%clk 0:01:12.9]} 21... Rcf8 {[%clk 0:00:20.4]} 22. a3 {[%clk 0:01:08.5]} 22...
Bh6 {[%clk 0:00:17.4]} 23. Rc2 {[%clk 0:01:05.2]} 23... fxg3+ {[%clk 0:00:17.6]}
24. fxg3 {[%clk 0:01:05]} 24... Bxd2 {[%clk 0:00:17.8]} 25. Rxd2 {[%clk
0:01:04.5]} 25... Qf6 {[%clk 0:00:17.8]} 26. Bg2 {[%clk 0:01:02.7]} 26... Qg7
{[%clk 0:00:16.7]} 27. Rxf7 {[%clk 0:01:00.8]} 27... Rxf7 {[%clk 0:00:17.1]} 28.
Nb2 {[%clk 0:00:56.2]} 28... d3 {[%clk 0:00:14.9]} 29. Nxd3 {[%clk 0:00:50.6]}
29... Nd4 {[%clk 0:00:15.4]} 30. Ne1 {[%clk 0:00:49]} 30... Bg4 {[%clk
0:00:15.2]} 31. Qb1 {[%clk 0:00:44.9]} 31... g5 {[%clk 0:00:15.5]} 32. Qd3
{[%clk 0:00:42.8]} 32... gxh4 {[%clk 0:00:15.5]} 33. gxh4 {[%clk 0:00:42.7]}
33... Qh6 {[%clk 0:00:16.1]} 34. Rb2 {[%clk 0:00:40.5]} 34... Qf4+ {[%clk
0:00:08.7]} 35. Qg3 {[%clk 0:00:40.2]} 35... Qc1 {[%clk 0:00:08.9]} 36. Ra2
{[%clk 0:00:32.9]} 36... Rf4 {[%clk 0:00:08.4]} 37. Nd3 {[%clk 0:00:30.9]} 37...
Qxc4 {[%clk 0:00:05.7]} 38. Nxf4 {[%clk 0:00:27.8]} 38... exf4 {[%clk
0:00:04.3]} 39. Qxf4 {[%clk 0:00:27.7]} 39... Qxa2 {[%clk 0:00:05.2]} 40. Qg5+
{[%clk 0:00:26.5]} 40... Kf8 {[%clk 0:00:05.7]} 41. Qd8+ {[%clk 0:00:26.1]}
41... Kg7 {[%clk 0:00:05.2]} 42. Qxd4+ {[%clk 0:00:25.8]} 42... Kg6 {[%clk
0:00:06.1]} 43. Qe3 {[%clk 0:00:21.7]} 43... Qe6 {[%clk 0:00:02.8]} 44. e5
{[%clk 0:00:21.3]} 44... Kf7 {[%clk 0:00:02.4]} 45. Qd4 {[%clk 0:00:19.9]} 45...
Ke8 {[%clk 0:00:02.6]} 46. Bxb7 {[%clk 0:00:17.8]} 46... Qe7 {[%clk 0:00:03]}
47. Bc6+ {[%clk 0:00:15.8]} 47... Kf7 {[%clk 0:00:03.5]} 48. Qf4+ {[%clk
0:00:15]} 48... Ke6 {[%clk 0:00:03.1]} 49. Qg5 {[%clk 0:00:13]} 49... Qxg5
{[%clk 0:00:02.7]} 50. hxg5 {[%clk 0:00:13.4]} 50... Kxe5 {[%clk 0:00:03.6]} 51.
Kg3 {[%clk 0:00:13.8]} 51... Kf5 {[%clk 0:00:04]} 52. Kh4 {[%clk 0:00:13.9]}
52... Kg6 {[%clk 0:00:04.2]} 53. Be8+ {[%clk 0:00:13.6]} 53... Kf5 {[%clk
0:00:04]} 54. Bxh5 {[%clk 0:00:14.5]} 54... Bxh5 {[%clk 0:00:03.9]} 55. Kxh5
{[%clk 0:00:14.1]} 55... a5 {[%clk 0:00:04.8]} 56. bxa5 {[%clk 0:00:13.1]} 56...
Ke6 {[%clk 0:00:05.7]} 57. a6 {[%clk 0:00:13.2]} 57... Kd7 {[%clk 0:00:06.6]}
58. a7 {[%clk 0:00:13.3]} 58... Kc6 {[%clk 0:00:07.5]} 59. a8=Q+ {[%clk
0:00:13.1]} 59... Kb5 {[%clk 0:00:08.4]} 60. c6 {[%clk 0:00:12.6]} 60... Kc4
{[%clk 0:00:09.3]} 61. c7 {[%clk 0:00:12.6]} 61... Kb3 {[%clk 0:00:10.2]} 1-0

[Event "*** Titled Tuesday Blitz"]
[Site "Chess.com"]
[Date "2020.11.10"]
[Round "3"]
[White "sboshaon21"]
[Black "VinzentSpitzl"]
[Result "0-1"]
[WhiteElo "2064"]
[BlackElo "2312"]
[TimeControl "180+1"]
[EndTime "10:32:52 PST"]
[Termination "VinzentSpitzl won on time"]

1. d4 {[%clk 0:03:00.9]} 1... f5 {[%clk 0:02:58.8]} 2. c4 {[%clk 0:03:00.9]}
2... Nf6 {[%clk 0:02:59]} 3. Nc3 {[%clk 0:03:01.3]} 3... g6 {[%clk 0:02:58.7]}
4. Bg5 {[%clk 0:03:01.4]} 4... Bg7 {[%clk 0:02:55.6]} 5. Bxf6 {[%clk 0:02:58.5]}
5... Bxf6 {[%clk 0:02:52.1]} 6. e4 {[%clk 0:02:59.1]} 6... fxe4 {[%clk
0:02:52.1]} 7. Nxe4 {[%clk 0:03:00]} 7... O-O {[%clk 0:02:52.6]} 8. Nf3 {[%clk
0:02:57.2]} 8... d6 {[%clk 0:02:46]} 9. h3 {[%clk 0:02:50.9]} 9... Bf5 {[%clk
0:02:28.4]} 10. Bd3 {[%clk 0:02:50.6]} 10... Nc6 {[%clk 0:02:18.5]} 11. Nxf6+
{[%clk 0:02:17.1]} 11... Rxf6 {[%clk 0:02:19.4]} 12. O-O {[%clk 0:02:15.8]}
12... e5 {[%clk 0:02:00.8]} 13. dxe5 {[%clk 0:02:08.9]} 13... Nxe5 {[%clk
0:01:57.4]} 14. Nxe5 {[%clk 0:02:05.9]} 14... dxe5 {[%clk 0:01:56.6]} 15. Bxf5
{[%clk 0:02:02.4]} 15... gxf5 {[%clk 0:01:55.4]} 16. Qb3 {[%clk 0:01:59.4]}
16... b6 {[%clk 0:01:31.3]} 17. Rad1 {[%clk 0:01:57]} 17... Qe7 {[%clk
0:01:30.5]} 18. Rd5 {[%clk 0:01:46.1]} 18... c6 {[%clk 0:01:22.6]} 19. Qg3+
{[%clk 0:01:34.7]} 19... Rg6 {[%clk 0:01:08]} 20. Rxe5 {[%clk 0:01:26.6]} 20...
Qg7 {[%clk 0:00:52.5]} 21. Qe3 {[%clk 0:01:16.9]} 21... Rxg2+ {[%clk 0:00:51.3]}
22. Kh1 {[%clk 0:01:17.5]} 22... Rf8 {[%clk 0:00:44.8]} 23. Re7 {[%clk 0:01:10]}
23... Qg6 {[%clk 0:00:43.6]} 24. Qe6+ {[%clk 0:00:57.1]} 24... Qxe6 {[%clk
0:00:43.7]} 25. Rxe6 {[%clk 0:00:57.8]} 25... Rg6 {[%clk 0:00:44.4]} 26. Rfe1
{[%clk 0:00:55.8]} 26... Rf7 {[%clk 0:00:34.3]} 27. Rxg6+ {[%clk 0:00:51.3]}
27... hxg6 {[%clk 0:00:34.1]} 28. Re6 {[%clk 0:00:51.9]} 28... Kg7 {[%clk
0:00:26.4]} 29. Rxc6 {[%clk 0:00:51.4]} 29... Rd7 {[%clk 0:00:26.3]} 30. b3
{[%clk 0:00:45.6]} 30... Kh6 {[%clk 0:00:14.1]} 31. Kg2 {[%clk 0:00:45.5]} 31...
Kg5 {[%clk 0:00:13.8]} 32. b4 {[%clk 0:00:38.1]} 32... Rd4 {[%clk 0:00:12.4]}
33. a4 {[%clk 0:00:36]} 33... a5 {[%clk 0:00:06.1]} 34. bxa5 {[%clk 0:00:27.9]}
34... bxa5 {[%clk 0:00:07]} 35. Rc5 {[%clk 0:00:19.5]} 35... Re4 {[%clk
0:00:04.1]} 36. Rc8 {[%clk 0:00:16]} 36... Re2 {[%clk 0:00:03.1]} 37. c5 {[%clk
0:00:14.8]} 37... Rc2 {[%clk 0:00:03.7]} 38. c6 {[%clk 0:00:14.3]} 38... Rc3
{[%clk 0:00:04.3]} 39. c7 {[%clk 0:00:12.2]} 39... Rc2 {[%clk 0:00:01.7]} 40.
Kf3 {[%clk 0:00:11.5]} 40... Rc3+ {[%clk 0:00:01.7]} 41. Ke2 {[%clk 0:00:11.5]}
41... Rc4 {[%clk 0:00:02]} 42. Kd3 {[%clk 0:00:11]} 42... Rc1 {[%clk 0:00:02.6]}
43. Kd4 {[%clk 0:00:10.4]} 43... Rd1+ {[%clk 0:00:02.3]} 44. Kc5 {[%clk
0:00:10]} 44... Rc1+ {[%clk 0:00:03.2]} 45. Kb5 {[%clk 0:00:09.9]} 45... Kf4
{[%clk 0:00:02.8]} 46. Kb6 {[%clk 0:00:06.5]} 46... Rb1+ {[%clk 0:00:02.4]} 47.
Kxa5 {[%clk 0:00:06.5]} 47... Rc1 {[%clk 0:00:02.1]} 48. Kb6 {[%clk 0:00:02]}
48... Rb1+ {[%clk 0:00:02.5]} 49. Ka5 {[%clk 0:00:02]} 49... Rc1 {[%clk
0:00:02.8]} 50. Kb6 {[%clk 0:00:02.7]} 50... Rb1+ {[%clk 0:00:03.3]} 51. Ka7
{[%clk 0:00:03.3]} 51... Rc1 {[%clk 0:00:03.2]} 52. a5 {[%clk 0:00:03.7]} 52...
Kf3 {[%clk 0:00:03.2]} 53. a6 {[%clk 0:00:03.5]} 53... Kxf2 {[%clk 0:00:03.6]}
54. Ka8 {[%clk 0:00:02.8]} 54... f4 {[%clk 0:00:03.4]} 55. a7 {[%clk 0:00:03]}
55... f3 {[%clk 0:00:03.1]} 56. Kb7 {[%clk 0:00:01.1]} 56... Rb1+ {[%clk
0:00:03.5]} 0-1

[Event "*** Titled Tuesday Blitz"]
[Site "Chess.com"]
[Date "2020.11.10"]
[Round "3"]
[White "Paladin61"]
[Black "Kotofeyca"]
[Result "0-1"]
[WhiteElo "2549"]
[BlackElo "2376"]
[TimeControl "180+1"]
[EndTime "10:32:56 PST"]
[Termination "Kotofeyca won on time"]

1. b3 {[%clk 0:03:00]} 1... d5 {[%clk 0:02:59.4]} 2. Bb2 {[%clk 0:02:59.9]} 2...
c6 {[%clk 0:02:58]} 3. Nf3 {[%clk 0:02:59.9]} 3... Bg4 {[%clk 0:02:57.9]} 4. g3
{[%clk 0:02:59.4]} 4... Bxf3 {[%clk 0:02:57.2]} 5. exf3 {[%clk 0:02:59.8]} 5...
Nf6 {[%clk 0:02:56.4]} 6. Bg2 {[%clk 0:02:56.5]} 6... g6 {[%clk 0:02:56.6]} 7.
O-O {[%clk 0:02:55.7]} 7... Bg7 {[%clk 0:02:56.7]} 8. f4 {[%clk 0:02:54.9]} 8...
O-O {[%clk 0:02:56.6]} 9. Re1 {[%clk 0:02:54.2]} 9... Nbd7 {[%clk 0:02:56.4]}
10. d3 {[%clk 0:02:52.5]} 10... a5 {[%clk 0:02:55.1]} 11. a3 {[%clk 0:02:52.1]}
11... e6 {[%clk 0:02:53.3]} 12. Nd2 {[%clk 0:02:52]} 12... a4 {[%clk 0:02:52.5]}
13. b4 {[%clk 0:02:51.8]} 13... Ne8 {[%clk 0:02:51.2]} 14. Qc1 {[%clk 0:02:37]}
14... Bxb2 {[%clk 0:02:49.3]} 15. Qxb2 {[%clk 0:02:37]} 15... Qf6 {[%clk
0:02:49.9]} 16. Qxf6 {[%clk 0:02:32.4]} 16... Ndxf6 {[%clk 0:02:49.5]} 17. Nf3
{[%clk 0:01:53.4]} 17... Nd6 {[%clk 0:02:48.3]} 18. Kf1 {[%clk 0:01:48.6]} 18...
Rfd8 {[%clk 0:02:43.3]} 19. Ne5 {[%clk 0:01:37.1]} 19... Nb5 {[%clk 0:02:40.5]}
20. c4 {[%clk 0:01:26]} 20... Nd4 {[%clk 0:02:35.9]} 21. Ra2 {[%clk 0:01:19.5]}
21... Nd7 {[%clk 0:02:32.2]} 22. Nf3 {[%clk 0:01:12.8]} 22... Nxf3 {[%clk
0:02:15.2]} 23. Bxf3 {[%clk 0:01:13]} 23... dxc4 {[%clk 0:02:14.6]} 24. dxc4
{[%clk 0:01:12.8]} 24... Nb6 {[%clk 0:02:15.5]} 25. c5 {[%clk 0:00:58.4]} 25...
Nc4 {[%clk 0:01:55.1]} 26. Rc1 {[%clk 0:00:58.1]} 26... Nd2+ {[%clk 0:01:50]}
27. Ke2 {[%clk 0:00:56]} 27... Nxf3 {[%clk 0:01:49.2]} 28. Kxf3 {[%clk
0:00:55.4]} 28... Rd3+ {[%clk 0:01:49.8]} 29. Ke2 {[%clk 0:00:55.4]} 29... Rad8
{[%clk 0:01:50.2]} 30. Rcc2 {[%clk 0:00:52.3]} 30... Kf8 {[%clk 0:01:41.6]} 31.
Rd2 {[%clk 0:00:51.4]} 31... Rxd2+ {[%clk 0:01:36]} 32. Rxd2 {[%clk 0:00:51.1]}
32... Rd5 {[%clk 0:01:36.5]} 33. Ke3 {[%clk 0:00:45.2]} 33... Ke7 {[%clk
0:01:35.8]} 34. Rd4 {[%clk 0:00:45]} 34... Kf6 {[%clk 0:01:32.5]} 35. Ke4 {[%clk
0:00:37.3]} 35... h5 {[%clk 0:01:30.7]} 36. h3 {[%clk 0:00:33.9]} 36... g5
{[%clk 0:01:21.9]} 37. fxg5+ {[%clk 0:00:31.7]} 37... Kxg5 {[%clk 0:01:22.1]}
38. Ke3 {[%clk 0:00:25.1]} 38... f6 {[%clk 0:00:59.6]} 39. Ke4 {[%clk
0:00:21.9]} 39... Re5+ {[%clk 0:00:49.9]} 40. Kd3 {[%clk 0:00:19.4]} 40... Rd5
{[%clk 0:00:50.1]} 41. Ke3 {[%clk 0:00:17.1]} 41... Kf5 {[%clk 0:00:46.1]} 42.
Rf4+ {[%clk 0:00:14.7]} 42... Kg5 {[%clk 0:00:45.1]} 43. Re4 {[%clk 0:00:11.2]}
43... e5 {[%clk 0:00:40]} 44. Rc4 {[%clk 0:00:10.3]} 44... Rd1 {[%clk
0:00:38.5]} 45. Rc3 {[%clk 0:00:09.5]} 45... Re1+ {[%clk 0:00:37.3]} 46. Kd3
{[%clk 0:00:09.4]} 46... Rh1 {[%clk 0:00:37.1]} 47. h4+ {[%clk 0:00:09.5]} 47...
Kg4 {[%clk 0:00:37.3]} 48. Kc4 {[%clk 0:00:05.6]} 48... Rf1 {[%clk 0:00:35.9]}
49. Rc2 {[%clk 0:00:05.1]} 49... Kf3 {[%clk 0:00:34.7]} 50. b5 {[%clk
0:00:04.6]} 50... Rxf2 {[%clk 0:00:34.2]} 51. Rc3+ {[%clk 0:00:04.8]} 51... Kg4
{[%clk 0:00:32.8]} 52. bxc6 {[%clk 0:00:05]} 52... bxc6 {[%clk 0:00:32.8]} 53.
Kb4 {[%clk 0:00:05.3]} 53... e4 {[%clk 0:00:27.4]} 54. Kxa4 {[%clk 0:00:03.4]}
54... Rb2 {[%clk 0:00:26.7]} 55. Ka5 {[%clk 0:00:01.5]} 55... f5 {[%clk
0:00:23.2]} 56. a4 {[%clk 0:00:01.5]} 56... f4 {[%clk 0:00:22.4]} 57. gxf4
{[%clk 0:00:01.9]} 57... Kxf4 {[%clk 0:00:23.3]} 58. Ka6 {[%clk 0:00:02]} 58...
e3 {[%clk 0:00:23.9]} 59. a5 {[%clk 0:00:01.5]} 59... e2 {[%clk 0:00:24.4]} 60.
Rc1 {[%clk 0:00:01.8]} 60... Ke3 {[%clk 0:00:24.7]} 61. Ka7 {[%clk 0:00:01.5]}
61... Kd2 {[%clk 0:00:24.8]} 62. Ra1 {[%clk 0:00:01.4]} 62... e1=Q {[%clk
0:00:24.2]} 0-1

[Event "*** Titled Tuesday Blitz"]
[Site "Chess.com"]
[Date "2020.11.10"]
[Round "3"]
[White "Rakhimzhan_Alen"]
[Black "exoticprincess"]
[Result "0-1"]
[WhiteElo "2631"]
[BlackElo "2875"]
[TimeControl "180+1"]
[EndTime "10:32:58 PST"]
[Termination "exoticprincess won by resignation"]

1. d4 {[%clk 0:03:00.9]} 1... d5 {[%clk 0:02:59.3]} 2. c4 {[%clk 0:03:01.2]}
2... c6 {[%clk 0:03:00.2]} 3. cxd5 {[%clk 0:03:01]} 3... cxd5 {[%clk 0:02:59.6]}
4. Bf4 {[%clk 0:03:01.6]} 4... Nc6 {[%clk 0:02:59.5]} 5. e3 {[%clk 0:03:02.1]}
5... Nf6 {[%clk 0:02:59.9]} 6. Nc3 {[%clk 0:03:02.5]} 6... a6 {[%clk 0:02:59.2]}
7. Bd3 {[%clk 0:03:01.4]} 7... g6 {[%clk 0:02:58.5]} 8. Nf3 {[%clk 0:02:59.9]}
8... Bg7 {[%clk 0:02:58.8]} 9. O-O {[%clk 0:02:59.8]} 9... O-O {[%clk 0:02:59]}
10. Rc1 {[%clk 0:02:59.6]} 10... Bg4 {[%clk 0:02:58.7]} 11. h3 {[%clk
0:02:59.5]} 11... Bxf3 {[%clk 0:02:58.6]} 12. Qxf3 {[%clk 0:03:00.2]} 12... e6
{[%clk 0:02:59.3]} 13. a3 {[%clk 0:02:55.9]} 13... Rc8 {[%clk 0:02:58.6]} 14.
Na4 {[%clk 0:02:50.8]} 14... Nd7 {[%clk 0:02:56.5]} 15. Qe2 {[%clk 0:02:34.4]}
15... Re8 {[%clk 0:02:46.9]} 16. Rfd1 {[%clk 0:02:18.8]} 16... Bf8 {[%clk
0:02:29.8]} 17. Bb1 {[%clk 0:02:14.6]} 17... Qf6 {[%clk 0:02:14.6]} 18. Bg3
{[%clk 0:02:09.5]} 18... h5 {[%clk 0:02:04.7]} 19. Rc2 {[%clk 0:01:31.9]} 19...
h4 {[%clk 0:01:55.5]} 20. Bh2 {[%clk 0:01:31.9]} 20... b5 {[%clk 0:01:49.9]} 21.
Nc3 {[%clk 0:01:20.5]} 21... Nb6 {[%clk 0:01:42.2]} 22. a4 {[%clk 0:00:49]}
22... Nb4 {[%clk 0:01:29.2]} 23. Rcc1 {[%clk 0:00:44.9]} 23... bxa4 {[%clk
0:01:29.4]} 24. Be5 {[%clk 0:00:39.1]} 24... Qg5 {[%clk 0:01:20.8]} 25. Bf4
{[%clk 0:00:36.1]} 25... Qd8 {[%clk 0:01:09.6]} 26. Qg4 {[%clk 0:00:32.3]} 26...
Bg7 {[%clk 0:01:01.8]} 27. Bg5 {[%clk 0:00:32.3]} 27... Bf6 {[%clk 0:01:01.7]}
28. Bh6 {[%clk 0:00:32.5]} 28... Qe7 {[%clk 0:00:33.5]} 29. Ne2 {[%clk
0:00:29.5]} 29... Rxc1 {[%clk 0:00:31]} 30. Rxc1 {[%clk 0:00:29.2]} 30... Kh7
{[%clk 0:00:25.4]} 31. Bf4 {[%clk 0:00:21.8]} 31... Kg7 {[%clk 0:00:24]} 32. Be5
{[%clk 0:00:19.5]} 32... Bxe5 {[%clk 0:00:23.1]} 33. dxe5 {[%clk 0:00:20.4]}
33... Rh8 {[%clk 0:00:20.4]} 34. Nf4 {[%clk 0:00:19.5]} 34... Rh6 {[%clk
0:00:20.2]} 35. Kh2 {[%clk 0:00:14.6]} 35... Nc4 {[%clk 0:00:20]} 36. Qe2 {[%clk
0:00:06.1]} 36... Nxe5 {[%clk 0:00:19.9]} 37. Qd2 {[%clk 0:00:06.4]} 37... Nc4
{[%clk 0:00:19.3]} 38. Qc3+ {[%clk 0:00:06.1]} 38... e5 {[%clk 0:00:19.7]} 39.
Nxd5 {[%clk 0:00:05.4]} 39... Nxd5 {[%clk 0:00:19.5]} 40. Qxc4 {[%clk
0:00:05.9]} 40... Nf6 {[%clk 0:00:19.9]} 41. Qc3 {[%clk 0:00:05.9]} 41... Rh8
{[%clk 0:00:18.7]} 42. Rd1 {[%clk 0:00:06.1]} 42... Rb8 {[%clk 0:00:18.1]} 43.
Bd3 {[%clk 0:00:04.3]} 43... Rb3 {[%clk 0:00:18]} 44. Qc2 {[%clk 0:00:04.5]}
44... Qb4 {[%clk 0:00:15.5]} 45. Bc4 {[%clk 0:00:04.9]} 45... Rxb2 {[%clk
0:00:15.3]} 46. Qd3 {[%clk 0:00:05.3]} 46... Rxf2 {[%clk 0:00:15.1]} 47. Bxa6
{[%clk 0:00:04]} 47... Qb2 {[%clk 0:00:14.8]} 48. Rg1 {[%clk 0:00:03.8]} 48...
e4 {[%clk 0:00:14.8]} 49. Qd6 {[%clk 0:00:03.4]} 49... Rf5 {[%clk 0:00:12.8]}
50. Bc4 {[%clk 0:00:03.3]} 50... Qe5+ {[%clk 0:00:13.7]} 51. Qxe5 {[%clk
0:00:03.5]} 51... Rxe5 {[%clk 0:00:14.6]} 52. Ra1 {[%clk 0:00:03.9]} 52... Ra5
{[%clk 0:00:15.5]} 53. Kg1 {[%clk 0:00:03.8]} 53... a3 {[%clk 0:00:15.2]} 54.
Kf2 {[%clk 0:00:04.3]} 54... Nd7 {[%clk 0:00:15.7]} 55. Ke2 {[%clk 0:00:04.7]}
55... Ne5 {[%clk 0:00:15.9]} 56. Bb3 {[%clk 0:00:04.9]} 56... Kf6 {[%clk
0:00:16]} 57. Kd2 {[%clk 0:00:05.3]} 57... Ke7 {[%clk 0:00:16]} 58. Kc3 {[%clk
0:00:05.8]} 58... Nd3 {[%clk 0:00:16.1]} 59. Kd4 {[%clk 0:00:05.1]} 59... f5
{[%clk 0:00:16]} 60. Bc4 {[%clk 0:00:05.6]} 60... Ra4 {[%clk 0:00:15.1]} 61. Kc3
{[%clk 0:00:05.3]} 61... Kd6 {[%clk 0:00:14.8]} 62. Bxd3 {[%clk 0:00:05.3]}
62... exd3 {[%clk 0:00:15.7]} 63. Kxd3 {[%clk 0:00:05.8]} 63... a2 {[%clk
0:00:16.3]} 64. Kc3 {[%clk 0:00:06]} 64... Ke5 {[%clk 0:00:16.6]} 65. Kb3 {[%clk
0:00:06.5]} 65... Ra8 {[%clk 0:00:16.6]} 0-1

[Event "*** Titled Tuesday Blitz"]
[Site "Chess.com"]
[Date "2020.11.10"]
[Round "3"]
[White "monalize"]
[Black "RobertoJBM"]
[Result "0-1"]
[WhiteElo "2299"]
[BlackElo "2792"]
[TimeControl "180+1"]
[EndTime "10:32:59 PST"]
[Termination "RobertoJBM won on time"]

1. e4 {[%clk 0:03:00.9]} 1... c6 {[%clk 0:03:00.1]} 2. Nc3 {[%clk 0:02:57.9]}
2... d5 {[%clk 0:03:01]} 3. d4 {[%clk 0:02:57.6]} 3... dxe4 {[%clk 0:03:01.2]}
4. Nxe4 {[%clk 0:02:57.4]} 4... Nd7 {[%clk 0:03:01.7]} 5. Ng5 {[%clk 0:02:54.4]}
5... Ngf6 {[%clk 0:03:01.8]} 6. Bc4 {[%clk 0:02:52.6]} 6... e6 {[%clk
0:03:02.1]} 7. Qe2 {[%clk 0:02:46.3]} 7... Nb6 {[%clk 0:03:02]} 8. Bd3 {[%clk
0:02:44.9]} 8... h6 {[%clk 0:03:02]} 9. N5f3 {[%clk 0:02:43.6]} 9... c5 {[%clk
0:03:02.5]} 10. Be3 {[%clk 0:02:39.7]} 10... Nbd5 {[%clk 0:03:02]} 11. O-O-O
{[%clk 0:02:34]} 11... Qa5 {[%clk 0:03:00.6]} 12. Kb1 {[%clk 0:02:31.9]} 12...
Nxe3 {[%clk 0:02:58.8]} 13. fxe3 {[%clk 0:02:31.1]} 13... a6 {[%clk 0:02:57.4]}
14. Ne5 {[%clk 0:02:25.7]} 14... Qc7 {[%clk 0:02:51]} 15. Ngf3 {[%clk
0:02:24.2]} 15... b5 {[%clk 0:02:46.4]} 16. c3 {[%clk 0:02:13]} 16... Bb7 {[%clk
0:02:44.8]} 17. g4 {[%clk 0:02:06.9]} 17... Bd6 {[%clk 0:02:38.4]} 18. Rhg1
{[%clk 0:02:05.8]} 18... c4 {[%clk 0:02:33.8]} 19. Bc2 {[%clk 0:02:04.9]} 19...
O-O-O {[%clk 0:02:09.2]} 20. h4 {[%clk 0:01:46.9]} 20... Ne4 {[%clk 0:02:03.4]}
21. Rdf1 {[%clk 0:01:37.4]} 21... f6 {[%clk 0:01:56.2]} 22. Ng6 {[%clk 0:01:36]}
22... Rhe8 {[%clk 0:01:55.8]} 23. Qe1 {[%clk 0:01:17.2]} 23... Ng3 {[%clk
0:01:21]} 24. Rf2 {[%clk 0:01:16.5]} 24... h5 {[%clk 0:01:19.7]} 25. gxh5 {[%clk
0:01:11.3]} 25... Nxh5 {[%clk 0:01:20.6]} 26. Qf1 {[%clk 0:00:58]} 26... Ng3
{[%clk 0:01:13]} 27. Qh3 {[%clk 0:00:56.1]} 27... Ne4 {[%clk 0:00:55.9]} 28.
Rfg2 {[%clk 0:00:53]} 28... Kb8 {[%clk 0:00:51.3]} 29. h5 {[%clk 0:00:51.1]}
29... Rd7 {[%clk 0:00:49.4]} 30. Rg4 {[%clk 0:00:47.1]} 30... Nf2 {[%clk
0:00:45.6]} 31. Qg2 {[%clk 0:00:44.9]} 31... Nxg4 {[%clk 0:00:45.2]} 32. Qxg4
{[%clk 0:00:44.7]} 32... Rf7 {[%clk 0:00:32.1]} 33. e4 {[%clk 0:00:43]} 33... e5
{[%clk 0:00:31.2]} 34. d5 {[%clk 0:00:41.7]} 34... Bc5 {[%clk 0:00:30.2]} 35.
Rd1 {[%clk 0:00:40.2]} 35... Bc8 {[%clk 0:00:30.8]} 36. Qg3 {[%clk 0:00:34.8]}
36... Rd7 {[%clk 0:00:30.8]} 37. Nfh4 {[%clk 0:00:34]} 37... Rd6 {[%clk
0:00:30]} 38. Qf3 {[%clk 0:00:33.2]} 38... a5 {[%clk 0:00:29]} 39. Qe2 {[%clk
0:00:30.2]} 39... Qb6 {[%clk 0:00:27.8]} 40. Rf1 {[%clk 0:00:25.4]} 40... Rdd8
{[%clk 0:00:26.3]} 41. Nf5 {[%clk 0:00:25.1]} 41... Bxf5 {[%clk 0:00:26.3]} 42.
Rxf5 {[%clk 0:00:24.4]} 42... Rd7 {[%clk 0:00:27.2]} 43. Rf1 {[%clk 0:00:19.2]}
43... Rc8 {[%clk 0:00:24.4]} 44. Nh4 {[%clk 0:00:17.8]} 44... Bf8 {[%clk
0:00:23.7]} 45. Nf5 {[%clk 0:00:17.2]} 45... b4 {[%clk 0:00:24.3]} 46. Rf3
{[%clk 0:00:15.2]} 46... Rb7 {[%clk 0:00:24]} 47. cxb4 {[%clk 0:00:14.3]} 47...
axb4 {[%clk 0:00:24]} 48. Ba4 {[%clk 0:00:13.3]} 48... c3 {[%clk 0:00:22.6]} 49.
Bb3 {[%clk 0:00:11.9]} 49... Qc5 {[%clk 0:00:21.5]} 50. Rf1 {[%clk 0:00:10.7]}
50... cxb2 {[%clk 0:00:21.1]} 51. Qxb2 {[%clk 0:00:10.1]} 51... Qc3 {[%clk
0:00:21.3]} 52. Qc2 {[%clk 0:00:09.5]} 52... Qxc2+ {[%clk 0:00:19]} 53. Bxc2
{[%clk 0:00:09.7]} 53... Rc3 {[%clk 0:00:19.9]} 54. Bb3 {[%clk 0:00:09.4]} 54...
Rh3 {[%clk 0:00:19.8]} 55. d6 {[%clk 0:00:08.9]} 55... Kc8 {[%clk 0:00:19.3]}
56. Rd1 {[%clk 0:00:08.6]} 56... Kd8 {[%clk 0:00:19.3]} 57. Ba4 {[%clk
0:00:08.2]} 57... Rxh5 {[%clk 0:00:19.2]} 58. Rc1 {[%clk 0:00:07.4]} 58... Rxf5
{[%clk 0:00:18.3]} 59. exf5 {[%clk 0:00:06.8]} 59... Bxd6 {[%clk 0:00:18.8]} 60.
Bc6 {[%clk 0:00:06.2]} 60... Rc7 {[%clk 0:00:18.7]} 61. Rc2 {[%clk 0:00:05.9]}
61... Ke7 {[%clk 0:00:16.1]} 62. Be4 {[%clk 0:00:05.9]} 62... Ra7 {[%clk
0:00:15.5]} 63. Rg2 {[%clk 0:00:05.7]} 63... Kf8 {[%clk 0:00:15.4]} 64. Rh2
{[%clk 0:00:03.8]} 64... Bc5 {[%clk 0:00:14.9]} 65. Rh8+ {[%clk 0:00:02.2]}
65... Ke7 {[%clk 0:00:15.2]} 0-1